[Event "WWRR IM-Group 2024"]
[Site "Wachtebeke"]
[Date "2024.02.12"]
[Round "1.1"]
[White "Hauchamps, Maxime"]
[Black "Leenhouts, Koen"]
[Result "0-1"]
[ECO "C02"]
[WhiteElo "2267"]
[BlackElo "2433"]
[Annotator "TA"]
[PlyCount "63"]
[EventDate "2024.02.12"]
[EventType "tourn"]
[EventCountry "BEL"]
[SourceTitle "playchess.com"]
[Source "ChessBase"]
[SourceQuality "1"]
[TimeControl "40/5400+30:900+30"]

{[%evp 17,63,0,23,19,12,9,17,0,48,58,37,16,51,47,56,50,57,17,19,20,20,16,0,4,21,3,17,25,46,48,50,-1,33,28,43,31,27,10,29,0,0,0,0,0,0,-134,-148,-125]} 1. e4 {[%emt 0:00:05]} e6 {[%emt 0:00:06]} 2. d4 {[%emt 0:00:06]} d5 {[%emt 0:00:06]} 3. e5 {[%emt 0:00:07]} c5 {[%emt 0:00:05]} 4. c3 {[%emt 0:00:05]} Nc6 {[%emt 0:00:06]} 5. Nf3 {[%emt 0:00:05]} Bd7 {[%emt 0:00:09]} 6. Be2 {[%emt 0:00:06]} Nge7 {[%emt 0:00:23]} 7. Na3 {[%emt 0:00:08]} Nf5 {[%emt 0:01:34]} 8. Nc2 {[%emt 0:00:15]} cxd4 {[%emt 0:04:28]} 9. cxd4 {[%emt 0:00:06]} Rc8 {[%emt 0:00:18]} 10. O-O {[%emt 0:03:52]} Be7 {[%emt 0:01:09]} 11. Kh1 {[%emt 0:05:24]} Qb6 {[%emt 0:14:26]} 12. Bd3 {[%emt 0:10:31] The position is equal.} Nb4 {[%emt 0:07:11]} (12... Nfxd4 $2 {perishes.} 13. Be3 $18) (12... Ncxd4 $2 13. Nfxd4 Nxd4 14. Be3 $18) (12... a5 $11) 13. Nxb4 $14 {[%emt 0:09:16]} Qxb4 {[%emt 0:00:50]} 14. Rb1 {[%emt 0:06:45]} Qb6 {[%emt 0:09:20]} 15. g4 {[%emt 0:11:10]} Nh4 {[%emt 0:03:03]} (15... Nxd4 $2 16. Be3 $18) 16. Nxh4 {[%emt 0:00:38]} Bxh4 {[%emt 0:00:07]} 17. Be3 {[%emt 0:00:40] Threatens to win with g5.} Be7 {[%emt 0:09:06]} 18. f4 {[%emt 0:07:47][%cal Bf2f4,Bf4f5][%mdl 32]} Bb5 {[%emt 0:01:57]} 19. Bxb5+ {[%emt 0:02:47]} Qxb5 {[%emt 0:00:07]} 20. f5 {[%emt 0:00:17]} Qa6 {[%emt 0:02:30]} 21. Rf2 {[%emt 0:08:41]} Bh4 {[%emt 0:04:09]} 22. Rf3 {[%emt 0:05:33] And now g5 would win.} h6 {[%emt 0:04:00][%cal Bh7h6,Bh6h5,Bh5h4][%mdl 32]} 23. Bd2 {[%emt 0:12:23]} Be7 {[%emt 0:03:05] Repels Bb4} 24. a4 {[%emt 0:05:38]} ({White should play} 24. Ra1 $14) 24... h5 {[%emt 0:01:19]} 25. Rh3 $1 {[%emt 0:03:38]} Rc4 {[%emt 0:04:07]} 26. Bc3 {[%emt 0:03:05]} h4 {[%emt 0:03:08]} (26... Qxa4 $2 {too greedy.} 27. b3 (27. gxh5 Qxd1+ 28. Rxd1 exf5 $17) 27... Rxc3 28. Rxc3 $18) 27. b3 {[%emt 0:01:59]} Rc7 {[%emt 0:00:09]} 28. Qd2 {[%emt 0:01:27]} Kd7 {[%emt 0:00:59]} 29. Ba5 {[%emt 0:01:25]} b6 {[%emt 0:01:10]} 30. Bc3 {[%emt 0:00:23]} Rhc8 {[%emt 0:00:40]} 31. Rc1 {[%emt 0:01:07]} (31. fxe6+ $11 {remains equal.} fxe6 32. Rf3) 31... b5 $17 {[%emt 0:02:48] [#] aiming for ...b4.} 32. Qe2 {[%emt 0:00:00] Weighted Error Value: White=0.17 (very precise) /Black=0.10 (very precise) .  Mistake:       	White=2     	Black=1      Inaccurate:     	White=2     	Black=2      OK:         	White=8     	Black=9      Best:        	White=1     	Black=1      Strong:       	White=1     	---} 0-1

[Event "WWRR IM-Group 2024"]
[Site "Wachtebeke"]
[Date "2024.02.12"]
[Round "1.2"]
[White "Gloeckler, Christian"]
[Black "Ochs, Daniel Elias"]
[Result "1-0"]
[ECO "B13"]
[WhiteElo "2354"]
[BlackElo "2280"]
[Annotator "TA"]
[PlyCount "88"]
[EventDate "2024.02.12"]
[EventType "tourn"]
[EventCountry "BEL"]
[SourceTitle "playchess.com"]
[Source "ChessBase"]
[SourceQuality "1"]
[TimeControl "40/5400+30:900+30"]

{[%evp 11,88,20,12,17,31,0,0,0,0,2,29,8,8,2,0,0,16,0,16,13,11,12,18,0,0,0,0,0,0,0,-8,0,0,-4,0,-34,0,0,0,0,0,0,0,0,0,0,0,0,0,0,31,27,32,26,33,-65,-2,-2,0,0,0,0,89,93,280,267,290,253,253,269,239,257,29995,29996,29996,29996,29996,29997,29999]} 1. e4 {[%emt 0:00:03]} c6 {[%emt 0:00:03]} 2. d4 {[%emt 0:00:37]} d5 {[%emt 0:00:05]} 3. exd5 {[%emt 0:00:38]} cxd5 {[%emt 0:00:09]} 4. Bd3 {[%emt 0:00:05]} Nf6 {[%emt 0:00:03]} 5. c3 {[%emt 0:00:09]} Bg4 {[%emt 0:00:04]} 6. Qb3 {[%emt 0:00:23]} Qc7 {[%emt 0:00:04]} 7. h3 {[%emt 0:00:50]} Bd7 {[%emt 0:00:03]} 8. Nd2 {[%emt 0:01:32]} e6 {[%emt 0:00:54]} 9. Ndf3 {[%emt 0:01:09] The position is equal.} Bd6 {[%emt 0:00:45] Prevents Bf4} 10. Ne2 {[%emt 0:01:00]} Bc6 {[%emt 0:02:33]} 11. Qc2 {[%emt 0:11:05]} Nbd7 {[%emt 0:02:23]} 12. Be3 {[%emt 0:03:26]} O-O {[%emt 0:03:21]} 13. O-O {[%emt 0:06:06]} Rae8 {[%emt 0:06:07]} 14. a4 {[%emt 0:05:45][%cal Ba2a4,Ba4b5][%mdl 32]} a6 {[%emt 0:15:20]} 15. Rfe1 {[%emt 0:05:17]} h6 {[%emt 0:06:40]} 16. Qc1 {[%emt 0:14:48][%cal Oe3h6]} Ne4 {[%emt 0:08:07]} 17. b4 {[%emt 0:06:59]} Nb6 {[%emt 0:05:12][%cal Bd7b6,Bb6c4,Bc4d2][%mdl 32]} (17... b5 $5) 18. b5 {[%emt 0:06:49]} axb5 {[%emt 0:01:19]} 19. axb5 {[%emt 0:00:16]} Bd7 {[%emt 0:00:13]} 20. Ne5 {[%emt 0:01:56]} Bxe5 {[%emt 0:11:04]} 21. dxe5 {[%emt 0:00:25]} Nc4 {[%emt 0:03:10]} 22. Bd4 $132 {[%emt 0:06:48][%mdl 2048] White has counterplay} Bxb5 {[%emt 0:14:38]} 23. Qb1 {[%emt 0:03:30]} Ba6 {[%emt 0:01:32]} 24. Bxe4 {[%emt 0:00:49]} dxe4 {[%emt 0:00:23]} 25. Qxe4 {[%emt 0:03:25]} Nd2 {[%emt 0:02:00]} 26. Qc2 {[%emt 0:01:28]} Bxe2 {[%emt 0:00:45]} 27. Qxd2 {[%emt 0:00:06]} (27. Rxe2 $5 Nc4 $8 28. Qa2 $17) 27... Bc4 {[%emt 0:00:29]} 28. Rab1 {[%emt 0:02:02]} Ra8 {[%emt 0:00:14]} 29. Re3 {[%emt 0:03:32]} Ra2 {[%emt 0:01:33]} 30. Qc1 {[%emt 0:00:37]} Kh7 {[%emt 0:07:22]} 31. Rb4 {[%emt 0:01:21]} Rfa8 {[%emt 0:01:19]} 32. Qb1+ {[%emt 0:03:33]} Kg8 {[%emt 0:00:06] aiming for ...Ra1.} 33. Kh2 {[%emt 0:03:21]} (33. Rxb7 $14 Qd8 34. Qb6) 33... b5 {[%emt 0:01:25]} (33... Rxf2 $15 34. Rg3 Rf1 35. Rxb7 Rxb1 36. Rxc7 Be2) 34. Rg3 $11 {[%emt 0:00:35]} Qc6 {[%emt 0:02:48]} 35. Qc1 {[%emt 0:00:33]} Kh7 {[%emt 0:00:50]} 36. Qf4 {[%emt 0:01:15]} Rf8 {[%emt 0:01:53]} (36... Qe8 $11 {keeps the balance.}) 37. Be3 $1 $16 {[%emt 0:01:22][%cal Og3g7] Hoping for Rxg7+!} Raa8 $2 {[%emt 0:01:58] [#] This move loses the game for Black.} (37... f5 $16) 38. Rxg7+ $3 $18 {[%emt 0:02:18][%mdl 512]} Kxg7 {[%emt 0:00:05]} 39. Qxh6+ {[%emt 0:00:09]} Kg8 {[%emt 0:00:02] White must now prevent ...Qe4.} 40. Qg5+ {[%emt 0:00:14]} Kh7 {[%emt 0:00:19] [#] Threatens to win with ...Qe4.} 41. Qh4+ {[%emt 0:15:25][%mdl 1024] White has strong compensation.} Kg6 $2 {[%emt 0:17:25]} (41... Kg8 $18) 42. Qh6+ {[%emt 0:03:00] White mates.} Kf5 {[%emt 0:00:05][%cal Bg6f5,Bf5e4,Be4d5][%mdl 32]} 43. Qg5+ {[%emt 0:00:08]} Ke4 {[%emt 0:00:14]} 44. Qf4+ {[%emt 0:00:05]} Kd5 {[%emt 0:02:26] Weighted Error Value: White=0.06 (flawless) /Black=0.34.  Loses game:     	---       	Black=1      Mistake:       	White=1     	Black=3      Inaccurate:     	White=2     	Black=3      OK:         	White=13    	Black=13     Best:        	White=3     	---        Strong:       	White=1     	---        Brilliant:      	White=1     	---} 1-0

[Event "WWRR IM-Group 2024"]
[Site "Wachtebeke"]
[Date "2024.02.12"]
[Round "1.3"]
[White "Milliet, Sophie"]
[Black "Victor, Julian"]
[Result "1/2-1/2"]
[ECO "B12"]
[WhiteElo "2384"]
[BlackElo "2216"]
[Annotator "TA"]
[PlyCount "85"]
[EventDate "2024.02.12"]
[EventType "tourn"]
[EventCountry "BEL"]
[SourceTitle "playchess.com"]
[Source "ChessBase"]
[SourceQuality "1"]
[TimeControl "40/5400+30:900+30"]

{[%evp 12,85,39,28,26,0,13,7,18,0,0,0,0,-8,0,0,0,0,-11,0,-10,-10,-8,-4,-6,-14,-8,-8,0,0,0,0,42,-9,-15,-15,-14,-15,-12,-24,-9,-11,-14,-28,-19,-24,-25,-31,-32,-30,-31,-42,-62,-56,-47,-117,-8,-12,-16,-19,-12,-8,-10,-10,-8,-8,-11,-10,0,-18,0,0,0,0,0,0]} 1. e4 {[%emt 0:00:05]} c6 {[%emt 0:00:11]} 2. d4 {[%emt 0:00:04]} d5 {[%emt 0:00:06]} 3. e5 {[%emt 0:00:04]} Bf5 {[%emt 0:00:14]} 4. Nf3 {[%emt 0:00:05]} e6 {[%emt 0:00:05]} 5. Be2 {[%emt 0:00:04]} Ne7 {[%emt 0:00:16]} 6. O-O {[%emt 0:00:08]} Bg6 {[%emt 0:00:15]} 7. Nbd2 {[%emt 0:02:37]} c5 {[%emt 0:00:19]} 8. dxc5 {[%emt 0:04:59]} Nec6 {[%emt 0:00:18][%cal Ob8d7]} 9. Nb3 {[%emt 0:00:53]} Nd7 {[%emt 0:00:22][%csl LRc5,LRe5][%cal Of8e7]} 10. c4 {[%emt 0:05:22]} dxc4 {[%emt 0:00:17]} 11. Bxc4 {[%emt 0:00:13]} Be7 {[%emt 0:04:22][%cal Oe8g8] Dodges Bg5} 12. Qe2 {[%emt 0:06:56]} Nxc5 {[%emt 0:03:16]} 13. Rd1 {[%emt 0:02:59]} Qc7 {[%emt 0:03:14]} 14. Nxc5 {[%emt 0:10:57]} Bxc5 {[%emt 0:00:06]} 15. Be3 {[%emt 0:00:13]} Bxe3 {[%emt 0:06:17]} 16. Qxe3 {[%emt 0:00:01]} O-O {[%emt 0:00:50]} 17. Rac1 {[%emt 0:08:59]} Rfd8 {[%emt 0:16:59]} 18. Rxd8+ {[%emt 0:00:33]} Rxd8 {[%emt 0:00:45]} 19. Bb5 {[%emt 0:00:32]} Rd5 {[%emt 0:01:18]} 20. Bxc6 {[%emt 0:00:05]} bxc6 {[%emt 0:00:05]} 21. h3 {[%emt 0:01:48]} c5 {[%emt 0:02:18]} 22. Rc3 {[%emt 0:04:42]} ({Better is} 22. b4 $14) 22... h6 $11 {[%emt 0:04:10]} 23. Qe2 {[%emt 0:02:54]} Kh7 {[%emt 0:09:19]} 24. Qc4 {[%emt 0:05:37]} Qd7 {[%emt 0:02:46]} 25. Rb3 {[%emt 0:02:13]} Bd3 {[%emt 0:03:07]} 26. Qh4 {[%emt 0:01:10] [#] Black must now prevent Ng5+.} Bb5 {[%emt 0:13:22]} 27. a4 {[%emt 0:05:05]} Ba6 {[%emt 0:00:15]} (27... Bxa4 $2 {loses.} 28. Ng5+ Kg6 29. Rg3 Rd1+ 30. Kh2 $18) 28. Qe4+ {[%emt 0:07:49]} Kg8 {[%emt 0:00:44]} 29. Rb8+ {[%emt 0:00:13]} Bc8 {[%emt 0:00:05]} 30. Qc4 {[%emt 0:06:37]} Qc7 {[%emt 0:00:23]} 31. Qb5 {[%emt 0:00:13] [#] And now Qe8+ would win.} Kh7 {[%emt 0:01:39]} 32. Ra8 {[%emt 0:01:15][%cal Bb8a8,Ba8a7,Ba7f7,Bf7e7,Be7e6,Be6c6,Bc6c5][%mdl 32]} a6 {[%emt 0:16:36]} 33. Qb3 {[%emt 0:09:10]} (33. Qb8 $1 $15 Qxb8 34. Rxb8) 33... Qb7 {[%emt 0:04:50]} (33... Bb7 $17 34. Ra7 Rd7) 34. Qxb7 {[%emt 0:01:48] The position is equal.} Bxb7 {[%emt 0:00:01][%mdl 4096] Endgame. KRB-KRN} 35. Ra7 {[%emt 0:00:08]} Rd1+ {[%emt 0:01:35]} 36. Kh2 {[%emt 0:00:01]} Bxf3 {[%emt 0:01:38]} 37. gxf3 {[%emt 0:00:02] KR-KR} Rd2 {[%emt 0:00:27]} 38. Rxf7 {[%emt 0:08:40]} Rxf2+ {[%emt 0:00:48]} 39. Kg3 {[%emt 0:00:00]} Rxb2 {[%emt 0:00:09]} 40. Re7 {[%emt 0:03:59]} Rb4 {[%emt 0:06:02]} 41. Rxe6 {[%emt 0:15:40]} Rxa4 {[%emt 0:15:11]} 42. Rc6 {[%emt 0:01:02]} g5 {[%emt 0:00:00]} 43. Rxc5 {[%emt 0:01:05] Weighted Error Value: White=0.08 (flawless) /Black=0.08 (flawless) .  Mistake:       	White=2     	Black=1      Inaccurate:     	---       	Black=1      OK:         	White=18    	Black=21     Best:        	White=3     	Black=2} 1/2-1/2

[Event "WWRR IM-Group 2024"]
[Site "Wachtebeke"]
[Date "2024.02.12"]
[Round "1.4"]
[White "Van Cappellen, Jonas"]
[Black "Dobrikov, Marco"]
[Result "0-1"]
[ECO "A24"]
[WhiteElo "2212"]
[BlackElo "2260"]
[Annotator "TA"]
[PlyCount "128"]
[EventDate "2024.02.12"]
[EventType "tourn"]
[EventCountry "BEL"]
[SourceTitle "playchess.com"]
[Source "ChessBase"]
[SourceQuality "1"]
[TimeControl "40/5400+30:900+30"]

{[%evp 16,128,10,16,10,12,24,0,29,7,15,6,43,43,39,21,53,16,27,-21,-14,-74,-82,-81,-64,-88,-85,-91,-61,-64,-62,-63,-56,-56,-47,-72,-68,-64,-56,-116,-49,-239,-256,-272,-264,-255,-258,-264,-258,-248,-149,-141,-143,-145,-147,-145,-145,-138,-145,-136,-129,-143,-144,-138,-138,-143,-136,-138,-133,-254,-250,-270,-266,-272,-266,-258,-258,-1102,-1102,-1162,-1161,-1153,-1100,-1106,-1102,-1075,-1022,-1221,-1133,-8143,-7084,-12836,-12750,-5202,-4132,-29972,-29973,-29973,-29974,-29974,-29975,-29975,-29976,-29976,-29977,-29977,-6621,-29978,-29979,-29980,-29981,-29981,-29982,-29981,-29982]} 1. Nf3 {[%emt 0:00:04]} Nf6 {[%emt 0:00:53]} 2. c4 {[%emt 0:00:09]} g6 {[%emt 0:00:11]} 3. Nc3 {[%emt 0:00:09]} Bg7 {[%emt 0:00:04]} 4. g3 {[%emt 0:00:08]} O-O {[%emt 0:00:06]} 5. Bg2 {[%emt 0:00:06]} d6 {[%emt 0:00:35]} 6. O-O {[%emt 0:00:11]} e5 {[%emt 0:01:42]} 7. d3 {[%emt 0:00:09]} Bg4 {[%emt 0:07:37] A24: English Opening vs King's Indian: Lines without ...Nc6.} 8. Nd2 {[%emt 0:08:56]} Qc8 $146 {[%emt 0:00:19]} ({Predecessor:} 8... Nc6 9. Nde4 Nxe4 10. Nxe4 Qd7 11. Bh6 Nd4 12. f3 Bh3 13. Bxg7 Kxg7 14. Qd2 Bxg2 15. Kxg2 f5 16. Nc3 c6 17. Rae1 Rae8 18. e3 Ne6 19. d4 Rf7 20. Rd1 Qc7 {½-½ Seubert,L (1557)-Schell,S (1475) GER-chT U16 Verden an der Aller 2009 (6.4)}) 9. Nde4 {[%emt 0:03:12]} Nxe4 {[%emt 0:05:13]} 10. dxe4 {[%emt 0:00:36]} Nc6 {[%emt 0:00:37]} 11. Nd5 {[%emt 0:01:39]} Kh8 {[%emt 0:00:15]} 12. Qd3 {[%emt 0:13:10]} Nd4 {[%emt 0:05:24]} 13. f3 {[%emt 0:01:16]} Be6 {[%emt 0:00:21]} 14. e3 {[%emt 0:02:22]} Nc6 {[%emt 0:00:12]} 15. Bd2 {[%emt 0:00:48]} a5 {[%emt 0:07:54]} 16. b3 {[%emt 0:03:56]} Nb8 {[%emt 0:08:35]} 17. a3 {[%emt 0:06:36]} (17. Rac1 $142) 17... Nd7 $11 {[%emt 0:00:24]} 18. b4 {[%emt 0:04:34]} (18. Nc3 $11 {remains equal.}) 18... c6 $17 {[%emt 0:04:02]} 19. Rfc1 {[%emt 0:03:01]} axb4 {[%emt 0:07:03]} (19... cxd5 20. cxd5 Qe8 21. dxe6 Qxe6 22. Qb5 $16 (22. bxa5 Nc5 $15)) 20. axb4 {[%emt 0:04:32] [#]} Rxa1 $1 {[%emt 0:00:04]} (20... cxd5 $6 21. Rxa8 Qxa8 22. cxd5 $14 (22. exd5 e4 $17) (22. exd5 $2 e4 $17)) 21. Rxa1 {[%emt 0:00:09]} f5 {[%emt 0:03:02]} (21... cxd5 $6 22. cxd5 Bxd5 23. Qxd5 $14) 22. Nc3 {[%emt 0:08:40]} Nb6 {[%emt 0:02:38]} 23. c5 {[%emt 0:01:11]} dxc5 {[%emt 0:00:11]} 24. bxc5 {[%emt 0:00:03]} Nc4 {[%emt 0:02:33]} 25. Bc1 {[%emt 0:02:15]} Rd8 {[%emt 0:00:05]} 26. Qe2 {[%emt 0:03:41]} Qd7 {[%emt 0:06:08]} 27. Bf1 {[%emt 0:01:54]} (27. Ra4 $1 $15) 27... Bf8 {[%emt 0:04:45]} (27... f4 $17 {And now ...Bh6 would win.} 28. Na4 Nxe3 29. Bxe3 fxe3) 28. Ra4 $2 {[%emt 0:06:51]} (28. exf5 $15 gxf5 29. Na4) 28... Nd2 $19 {[%emt 0:00:13]} ({And not} 28... Bxc5 29. exf5 (29. Rxc4 Bxc4 30. Qxc4 Bf8 $18) 29... gxf5 30. Rxc4 Bxc4 31. Qxc4 $16) 29. Bxd2 {[%emt 0:04:04]} Qxd2 {[%emt 0:00:02]} 30. Qxd2 {[%emt 0:01:04]} Rxd2 {[%emt 0:00:02]} 31. Ra8 {[%emt 0:02:45]} Kg7 {[%emt 0:00:25]} 32. Rb8 {[%emt 0:05:32]} Rd7 {[%emt 0:05:35]} 33. exf5 {[%emt 0:01:04]} gxf5 {[%emt 0:00:05]} 34. Na4 {[%emt 0:01:38]} Bb3 {[%emt 0:00:02]} 35. Nb6 {[%emt 0:00:09]} Rc7 {[%emt 0:01:55]} 36. Bc4 {[%emt 0:01:05] [#]} Bxc4 $1 {[%emt 0:01:47]} ({But not} 36... Bxc5 37. Rg8+ Kh6 38. Bxb3 $15) 37. Nxc4 {[%emt 0:00:06]} Bxc5 {[%emt 0:00:03]} 38. Nxe5 {[%emt 0:01:54]} Bxe3+ {[%emt 0:00:01]} 39. Kf1 {[%emt 0:00:20]} Bd4 {[%emt 0:00:27]} 40. Nc4 {[%emt 0:02:01]} b5 {[%emt 0:11:35]} 41. Nd6 {[%emt 0:15:09]} Kg6 {[%emt 0:15:00]} 42. g4 {[%emt 0:00:00]} (42. Rd8 $17 {was called for.}) 42... fxg4 $19 {[%emt 0:00:00]} 43. fxg4 {[%emt 0:00:00]} Be5 {[%emt 0:00:00]} 44. Rg8+ {[%emt 0:01:31]} Rg7 {[%emt 0:00:00]} 45. Rd8 {[%emt 0:01:07]} Bxh2 {[%emt 0:00:00]} 46. Kg2 $2 {[%emt 0:00:44]} (46. Nf5 Rc7 47. Re8) 46... Bxd6 $19 {[%emt 0:00:00]} 47. Rxd6+ {[%emt 0:00:36]} Kg5 {[%emt 0:00:00]} 48. Rxc6 {[%emt 0:01:01]} Kxg4 {[%emt 0:00:00]} 49. Rb6 {[%emt 0:01:37]} Rg5 {[%emt 0:00:00]} 50. Rh6 {[%emt 0:01:26]} Rh5 {[%emt 0:00:00]} 51. Rb6 {[%emt 0:02:06]} Kf4 {[%emt 0:00:00]} 52. Kf2 {[%emt 0:01:25]} Ke4 {[%emt 0:00:00]} 53. Ke2 {[%emt 0:01:20]} Kd4 {[%emt 0:00:00]} 54. Kd2 {[%emt 0:00:40]} Kc4 {[%emt 0:00:00]} 55. Kc2 {[%emt 0:01:14]} Rh2+ {[%emt 0:00:00]} 56. Kb1 {[%emt 0:00:37]} h5 {[%emt 0:00:29]} 57. Rf6 {[%emt 0:01:01]} b4 {[%emt 0:01:46]} 58. Rf4+ {[%emt 0:00:36]} Kb3 {[%emt 0:01:03]} 59. Rf3+ {[%emt 0:00:47]} Ka4 {[%emt 0:00:00]} 60. Re3 {[%emt 0:00:00]} h4 {[%emt 0:00:00]} 61. Rf3 {[%emt 0:00:00]} h3 {[%emt 0:00:00]} 62. Re3 {[%emt 0:00:00]} b3 {[%emt 0:00:00]} 63. Re8 {[%emt 0:00:00]} Rg2 {[%emt 0:00:00]} 64. Ra8+ {[%emt 0:00:00]} Kb5 {[%emt 0:00:00]} 0-1

[Event "WWRR IM-Group 2024"]
[Site "Wachtebeke"]
[Date "2024.02.12"]
[Round "1.5"]
[White "De Waele, Warre"]
[Black "Matnadze Bujiashvili, Ann"]
[Result "1-0"]
[ECO "D55"]
[WhiteElo "2345"]
[BlackElo "2364"]
[Annotator "TA"]
[PlyCount "107"]
[EventDate "2024.02.12"]
[EventType "tourn"]
[EventCountry "BEL"]
[SourceTitle "playchess.com"]
[Source "ChessBase"]
[SourceQuality "1"]
[TimeControl "40/5400+30:900+30"]

{[%evp 20,107,16,26,67,79,77,85,85,78,71,77,79,62,57,68,65,61,63,64,56,49,56,33,76,39,33,33,34,44,53,29,93,89,93,80,90,36,108,100,112,81,132,138,270,260,630,277,273,270,272,264,274,274,274,262,267,257,331,350,443,297,409,387,499,490,472,471,538,474,472,472,467,467,641,598,615,590,639,589,645,606,1129,1148,1562,1246,1474,1439,29966,4934]} 1. Nf3 {[%emt 0:00:04]} Nf6 {[%emt 0:00:07]} 2. c4 {[%emt 0:00:18]} e6 {[%emt 0:00:07]} 3. Nc3 {[%emt 0:00:10]} d5 {[%emt 0:00:18]} 4. d4 {[%emt 0:00:09]} Be7 {[%emt 0:00:19]} 5. Bg5 {[%emt 0:01:51]} O-O {[%emt 0:00:40]} 6. e3 {[%emt 0:00:07]} b6 {[%emt 0:00:20]} 7. Bxf6 {[%emt 0:03:12]} Bxf6 {[%emt 0:00:02]} 8. cxd5 {[%emt 0:00:11]} exd5 {[%emt 0:00:02]} 9. Bd3 {[%emt 0:00:11]} Bb7 {[%emt 0:00:21]} 10. O-O {[%emt 0:03:58] D55: Queen's Gambit Declined: 4 Bg5 Be7: Lines without ...h6 and 6...h6 7 Bxf6.} Nd7 {[%emt 0:01:08]} 11. b4 {[%emt 0:06:01]} c5 {[%emt 0:01:10]} 12. bxc5 $1 {[%emt 0:00:25]} bxc5 {[%emt 0:00:32]} 13. Bxh7+ {[%emt 0:10:26]} Kxh7 {[%emt 0:00:21]} 14. Qb1+ {[%emt 0:00:06]} Kg8 {[%emt 0:01:16]} 15. Qxb7 {[%emt 0:02:50]} cxd4 {[%emt 0:00:23]} 16. Nxd4 $146 {[%emt 0:05:42]} ({But not} 16. Nxd5 dxe3 17. Rac1 Rb8 18. Nxf6+ (18. Qxa7 e2 $14) 18... Nxf6 19. Qxa7 Re8 $11) ({Predecessor:} 16. exd4 Nb6 17. a4 Qc8 18. Qxc8 Raxc8 19. Nb5 a5 20. Nd6 Rc6 21. Nf5 Rd8 22. Rfb1 {1-0 Vnukov,A (2379)-Merdinjan,A (2325) EU-chT Railways USIC 2000 (6.4)}) 16... Bxd4 {[%emt 0:01:11]} 17. exd4 {[%emt 0:00:08]} Nf6 {[%emt 0:00:09]} 18. Qa6 {[%emt 0:08:32]} Re8 {[%emt 0:01:59]} 19. Rac1 {[%emt 0:01:20]} Re6 {[%emt 0:01:43]} 20. Qd3 {[%emt 0:01:55]} Qa5 {[%emt 0:03:01]} 21. Qb5 {[%emt 0:01:56]} Qd8 {[%emt 0:05:14]} 22. Rfe1 {[%emt 0:03:31]} Rxe1+ {[%emt 0:04:22]} 23. Rxe1 {[%emt 0:00:06]} Rc8 {[%emt 0:00:06]} 24. Ne2 {[%emt 0:10:25]} Qe7 {[%emt 0:06:26]} 25. Qd3 {[%emt 0:05:37]} Qb4 {[%emt 0:02:41]} (25... Re8 $11) 26. Rb1 $16 {[%emt 0:01:16]} Qa5 {[%emt 0:00:17] [#]} 27. a3 $1 {[%emt 0:01:29]} g6 {[%emt 0:00:17]} 28. f3 {[%emt 0:00:24]} (28. g3 $16) 28... Rc4 {[%emt 0:01:45]} ({Black should play} 28... Ne8 $14) 29. Qe3 $16 {[%emt 0:01:06]} Kg7 {[%emt 0:00:54]} 30. h3 {[%emt 0:03:58]} Rc2 {[%emt 0:06:17]} ({Better is} 30... Rc8) 31. Nf4 $16 {[%emt 0:05:32]} Qd2 {[%emt 0:11:43] [#]} (31... Qc7 $16 32. Qe5 Rc4) 32. Qe5 $1 $18 {[%emt 0:00:41]} Qf2+ $2 {[%emt 0:17:36]} (32... Rc1+ 33. Rxc1 Qxc1+ 34. Kh2 Qc6) 33. Kh1 {[%emt 0:01:05]} (33. Kh2 $142 {Rb7 is the strong threat.} Qxf3 34. Rb7) 33... Rd2 $18 {[%emt 0:00:11]} 34. Rb7 {[%emt 0:03:38]} (34. Nxd5 $2 Qxg2#) 34... Rd1+ {[%emt 0:02:44]} 35. Kh2 {[%emt 0:00:06]} Qg1+ {[%emt 0:05:02]} 36. Kg3 {[%emt 0:00:07]} Qe1+ {[%emt 0:00:48]} 37. Qxe1 {[%emt 0:00:06]} Rxe1 {[%emt 0:00:02]} 38. Rxa7 {[%emt 0:01:51]} g5 {[%emt 0:01:10]} 39. Nd3 {[%emt 0:00:15]} Re2 {[%emt 0:08:18]} 40. a4 {[%emt 0:03:29]} Nh5+ {[%emt 0:04:34]} 41. Kg4 {[%emt 0:21:21]} Nf6+ {[%emt 0:19:28]} 42. Kxg5 {[%emt 0:01:54]} Rxg2+ {[%emt 0:04:00]} 43. Kf5 {[%emt 0:00:10]} Ng8 {[%emt 0:01:58]} 44. Nf4 {[%emt 0:04:18]} Nh6+ {[%emt 0:04:00]} 45. Ke5 {[%emt 0:00:14]} Rg5+ {[%emt 0:00:31]} 46. Kd6 {[%emt 0:00:14]} Rf5 {[%emt 0:01:08]} 47. Nxd5 {[%emt 0:01:44]} Rxf3 {[%emt 0:00:32]} 48. a5 {[%emt 0:00:26]} Rxh3 {[%emt 0:00:47]} 49. a6 {[%emt 0:00:40]} Nf5+ {[%emt 0:00:39]} 50. Ke5 {[%emt 0:01:38]} Ng3 {[%emt 0:00:00]} 51. Rd7 {[%emt 0:00:00]} Rh4 {[%emt 0:00:00]} 52. a7 {[%emt 0:00:00]} Re4+ {[%emt 0:00:00]} 53. Kd6 {[%emt 0:00:00]} Nf5+ {[%emt 0:00:00]} 54. Kc5 {[%emt 0:00:00]} (54. Kc7 $142 Nxd4 55. a8=Q (55. a8=B Ne6+ 56. Kd6 Rg4 $16) 55... Re1 56. Qa4 (56. Qb8 Ne6+ 57. Kc6 Re4 58. Qb2+ Nd4+ 59. Kc7 Kh6 60. Qd2+ Kg6 61. Qg2+ Kf5) 56... Ne6+ 57. Kb6 Rb1+ 58. Ka7 Rf1 59. Qg4+ Kf8 60. Qh4) 1-0